Workbook

Sheet 11月
A1: 城市居民最低生活保障工作情况统计表（一）
A2: 填报单位：鼓楼区民政局 (2025年11月）
A3: 区县 | C3: 非农 人口 总数 | D3: 保 障 对 象 情 况 | P3: 保障资金情况
D4: 户 数 | I4: 人 数 | O4: 保障对象占非农总人口比例 | P4: 本月 发放 金额 | Q4: 上月 发放 金额 | R4: 本月 新增 金额 | S4: 本月 减少 金额 | T4: 本月调增金额 | U4: 本月 调减 金额 | V4: 本月 人均 补差 金额 | W4: 当年累计发放低保金额总额
D5: 本 月 数 | E5: 上 月 数 | F5: 本月 新增 数 | G5: 本月减少数 | H5: 本月 调整 数 | I5: 本 月 数 | J5: 上 月 数 | K5: 本月 新增 数 | L5: 本月 减少 数 | M5: 本月调增数 | N5: 本月调减数
C6: 万人 | D6: 户 | E6: 户 | F6: 户 | G6: 户 | H6: 户 | I6: 人 | J6: 人 | K6: 人 | L6: 人 | M6: 人 | N6: 人 | O6: （‰） | P6: 元 | Q6: 元 | R6: 元 | S6: 元 | T6: 元 | U6: 元 | V6: 元 | W6: 元
A7: 1 | C7: 2 | D7: 3 | E7: 4 | F7: 5 | G7: 6 | H7: 7 | I7: 8 | J7: 9 | K7: 10 | L7: 11 | M7: 12 | N7: 13 | O7: 14 | P7: 15 | Q7: 16 | R7: 17 | S7: 18 | T7: 19 | U7: 20 | V7: 21 | W7: 22
A8: 1 | B8: 华侨路 | C8: 7.02 | D8: 121 | E8: 123 | F8: 1 | G8: 3 | H8: 0 | I8: 171 | J8: 173 | K8: 1 | L8: 3 | M8: 0 | N8: 0 | O8: =I:I/C:C/10 -> 2.44 | P8: =Q8+R8-S8+T8-U8 -> 153981 | Q8: 155688 | R8: 1450 | S8: 3157 | T8: 0 | U8: 0 | V8: =P8/I8 -> 900.47 | W8: 1739179
A9: 2 | B9: 宁海路 | C9: 8.35 | D9: 126 | E9: 127 | F9: 1 | G9: 2 | H9: 0 | I9: 148 | J9: 149 | K9: 1 | L9: 2 | M9: 0 | N9: 0 | O9: =I9/C9/10 -> 1.77 | P9: 157627 | Q9: 157850 | R9: 1115 | S9: 1338 | T9: 0 | U9: 0 | V9: =P9/I9 -> 1065.05 | W9: 1810057
A10: 3 | B10: 湖南路 | C10: 6.30 | D10: =E10+F10-G10 -> 120 | E10: 117 | F10: 3 | G10: 0 | H10: 1 | I10: =J10+K10-L10+M10-N10 -> 150 | J10: 147 | K10: 3 | L10: 0 | M10: 0 | N10: 0 | O10: 2.38 | P10: =Q10+R10-S10+T10-U10 -> 150276 | Q10: 146423 | R10: 3457 | S10: 0 | T10: 396 | U10: 0 | V10: 1001.84 | W10: 1674140
A11: 4 | B11: 中央门 | C11: 9.94 | D11: 295 | E11: 295 | F11: 0 | G11: 0 | H11: 3 | I11: 410 | J11: 411 | K11: 0 | L11: 0 | M11: 0 | N11: 1 | O11: 4.12 | P11: 384713 | Q11: 385067 | R11: 0 | S11: 0 | T11: 161 | U11: 515 | V11: 938.32 | W11: 4266675
A12: 5 | B12: 挹江门 | C12: 7.13 | D12: 187 | E12: 188 | F12: 0 | G12: 1 | H12: 0 | I12: 245 | J12: 246 | K12: 0 | L12: 1 | M12: 0 | N12: 0 | O12: 3.44 | P12: 243073 | Q12: 244523 | R12: 0 | S12: 1450 | T12: 0 | U12: 0 | V12: 992.13 | W12: 2744786
A13: 6 | B13: 江东 | C13: 11.21 | D13: 71 | E13: 69 | F13: 2 | G13: 0 | H13: 0 | I13: 100 | J13: 97 | K13: 3 | L13: 0 | M13: 0 | N13: 0 | O13: 0.89 | P13: =Q13+R13+T13-S13 -> 89410 | Q13: 87451 | R13: 1959 | S13: 0 | T13: 0 | U13: 0 | V13: 894.10 | W13: 936191
A14: 7 | B14: 凤凰 | C14: 10.4 | D14: 195 | E14: 196 | F14: 0 | G14: 1 | H14: 1 | I14: 262 | J14: 264 | K14: 0 | L14: 1 | M14: 0 | N14: 1 | O14: 2.52 | P14: 250210 | Q14: 252352 | R14: 0 | S14: 1027 | T14: 0 | U14: 1115 | V14: 955.00 | W14: 2828562
A15: 8 | B15: 热南 | C15: 6.72 | D15: 178 | E15: 177 | F15: 1 | G15: 0 | H15: 0 | I15: 235 | J15: 234 | K15: 1 | L15: 0 | M15: 0 | N15: 0 | O15: 3.50 | P15: 207711 | Q15: 206573 | R15: 1138 | S15: 0 | T15: 0 | U15: 0 | V15: 883.88 | W15: 2319502
A16: 9 | B16: 下关 | C16: 4.02 | D16: =E16+F16-G16 -> 304 | E16: 305 | F16: 0 | G16: 1 | H16: 2 | I16: =J16+K16-L16+M16-N16 -> 394 | J16: 395 | K16: 0 | L16: 1 | M16: 0 | N16: 0 | O16: 9.80 | P16: =Q16+R16-S16+T16-U16 -> 356441 | Q16: 359293 | R16: 0 | S16: 988 | T16: 0 | U16: 1864 | V16: 904.67 | W16: 4024618
A17: 10 | B17: 建宁路 | C17: 3.87 | D17: 170 | E17: 170 | F17: 1 | G17: 1 | H17: 0 | I17: 222 | J17: 222 | K17: 1 | L17: 1 | M17: 0 | N17: 0 | O17: 5.74 | P17: 214345 | Q17: 214633 | R17: 827 | S17: 1115 | T17: 0 | U17: 0 | V17: 965.52 | W17: 2450595
A18: 11 | B18: 小市 | C18: 6.15 | D18: 250 | E18: 250 | F18: 2 | G18: 2 | H18: 2 | I18: 335 | J18: 334 | K18: 3 | L18: 2 | M18: 0 | N18: 0 | O18: 5.45 | P18: 309141 | Q18: 308380 | R18: 3103 | S18: 2230 | T18: 0 | U18: 112 | V18: 922.81 | W18: 3441642
A19: 12 | B19: 宝塔桥 | C19: 8.91 | D19: 500 | E19: 503 | F19: 1 | G19: 4 | H19: 3 | I19: 721 | J19: 725 | K19: 1 | L19: 4 | M19: 0 | N19: 1 | O19: 8.09 | P19: 655090 | Q19: 659465 | R19: 1027 | S19: 3746 | T19: 111 | U19: 1767 | V19: 908.59 | W19: 7347902
A20: 13 | B20: 幕府山 | C20: 5.85 | D20: 207 | E20: 207 | F20: 0 | G20: 0 | H20: 0 | I20: 281 | J20: 281 | K20: 0 | L20: 0 | M20: 0 | N20: 0 | O20: =I20/3.97/10 -> 7.08 | P20: =Q20+R20-S20+T20-U20 -> 287332 | Q20: 287332 | R20: 0 | S20: 0 | T20: 0 | U20: 0 | V20: 1022.53 | W20: 3183951
A21: 合计 | C21: =C8+C9+C10+C11+C12+C13+C14+C15+C16+C17+C18+C19+C20 -> 95.8668 | D21: =SUM(D8:D20) -> 2724 | E21: 2727 | F21: =SUM(F8:F20) -> 12 | G21: =SUM(G8:G20) -> 15 | H21: =SUM(H8:H20) -> 12 | I21: =I8+I9+I10+I11+I12+I13+I14+I15+I16+I17+I18+I19+I20 -> 3674 | J21: =SUM(J8:J20) -> 3678 | K21: =SUM(K8:K20) -> 14 | L21: =L8+L9+L10+L11+L12+L13+L14+L15+L16+L17+L18+L19+L20 -> 15 | M21: 0 | N21: 3 | O21: 3.83 | P21: =P8+P9+P10+P11+P12+P13+P14+P15+P16+P17+P18+P19+P20 -> 3459350 | Q21: =SUM(Q8:Q20) -> 3465030 | R21: =SUM(R8:R20) -> 14076 | S21: 15051 | T21: 668 | U21: 5373 | V21: 941.58 | W21: 38767800
A22: 填表人： 填表时间： 2025.11 签批人：
W37: 17772608
